Cogmind - Beta 17 @@@ ROGUE MODE // 2026.06.27 @ 11:10:32 Player: nnnnsk Result: Self-destructed Performance ------------- Evolutions (5) 2500 Regions Visited (13) 2600 Robots Destroyed (177) 885 Value Destroyed (6431) 6431 Prototype IDs (16) 320 Alien Tech Used (0) 0 Bonus (1198) 1198 TOTAL SCORE: 13934 Bonus ------- High Alert Combat Kills 236 Follower Combat Kills 262 Entered Garrisons 200 Used RIF Installer 500 Cogmind --------- Core Integrity 904/1000 Matter 300/300 Energy 100/100 System Corruption 0% Temperature Cool (0) Movement Core (400) Ox7 Location -5/Factory Parts ------- > --- POWER (2) -------- (None) > --- PROPULSION (4) --- (None) > --- UTILITY (8) ------ Large Storage Unit Advanced Signal Interpreter Transport Network Coupler Hacking Suite System Shield > --- WEAPON (3) ------- Improved Datajack Makeshift Spear > --- INVENTORY (15) --- Improved Ion Engine Light Neutrino Core Improved Hover Unit Nuclear Pulse Array Medium Reactive Plating Hacking Suite Plasma Rifle Peak State ------------ > --- POWER ------------ Cooled Deuterium Engine > --- PROPULSION ------- Carbon-fiber Leg Titanium Leg Improved Carbon-fiber Leg Flexi-carbon Leg > --- UTILITY ---------- Improved Cryofiber Web Advanced Heat Sink Large Storage Unit Structural Scanner Core Analyzer Layered Medium Armor Plating Hacking Suite > --- WEAPON ----------- Particle Gun Flak Gun Heavy Missile Launcher > --- INVENTORY -------- Light Nuclear Core Energy Well Kinecellerator Weapon Cycler Remote Shield Hacking Suite System Shield Authchip [Propulsion] Relay Coupler [NC] Relay Coupler [Hunter] Heavy EM Shotgun Heavy EM Shotgun Particle Gun Improved Datajack Katana [Rating: 59] Favorites ----------- Power Light Nuclear Core Engine Heavy Ion Engine Power Core Light Nuclear Core Propulsion Light Treads Treads Light Treads Leg Titanium Leg Wheel Wheel Utility Large Storage Unit Device Structural Scanner Storage Large Storage Unit Processor Visual Processing Unit Hackware Hacking Suite Protection Hardened Medium Armor Plating Weapon Particle Gun Energy Gun Particle Gun Ballistic Gun Heavy Assault Rifle Launcher EMP Blaster Special Weapon Remote Datajack Slashing Weapon Katana Piercing Weapon Makeshift Spear Special Melee Weapon Improved Datajack Build | -11 -10 -9 -9 -9 -8 -8 -8 -8 -8 -6 -6 -6 -5 ------- Run | Yrd Mat Mat Min Exi Min Mat Sto Gar Rec Fac Low Low Fac Slots Evolved 10 | . . 2 . . . 2 . . . 4 . . 2 Power 1 | . . . . . . . . . . . . . 1 Propulsion 2 | . . 2 . . . . . . . . . . . Utility 6 | . . . . . . 2 . . . 3 . . 1 Weapon 1 | . . . . . . . . . . 1 . . . Parts Attached 136 | 7 7 16 . . . 31 24 11 . 24 7 1 8 Power 15 | 1 1 1 . . . 4 2 2 . 2 1 . 1 Engine 10 | 1 . 1 . . . 3 2 . . 2 1 . . Core 5 | . 1 . . . . 1 . 2 . . . . 1 Reactor . | . . . . . . . . . . . . . . Propulsion 40 | 2 3 8 . . . 8 9 2 . 6 1 . 1 Treads 26 | 2 3 8 . . . 4 9 . . . . . . Leg 10 | . . . . . . . . 2 . 6 1 . 1 Wheel 4 | . . . . . . 4 . . . . . . . Hover . | . . . . . . . . . . . . . . Flight . | . . . . . . . . . . . . . . Utility 43 | 2 2 . . . . 10 9 3 . 8 4 . 5 Device 15 | 1 . . . . . 6 1 2 . 3 2 . . Storage 3 | 1 1 . . . . . . . . . . . 1 Processor 10 | . 1 . . . . 2 4 . . 1 1 . 1 Hackware 6 | . . . . . . . 1 . . 2 . . 3 Protection 9 | . . . . . . 2 3 1 . 2 1 . . Artifact . | . . . . . . . . . . . . . . Weapon 38 | 2 1 7 . . . 9 4 4 . 8 1 1 1 Energy Gun 13 | 1 . 4 . . . 2 . 4 . 2 . . . Energy Cannon . | . . . . . . . . . . . . . . Ballistic Gun 11 | 1 . 1 . . . 4 3 . . 2 . . . Ballistic Cannon . | . . . . . . . . . . . . . . Launcher 5 | . 1 1 . . . 1 1 . . 1 . . . Special Weapon 2 | . . 1 . . . . . . . 1 . . . Impact Weapon . | . . . . . . . . . . . . . . Slashing Weapon 3 | . . . . . . 2 . . . 1 . . . Piercing Weapon 2 | . . . . . . . . . . . 1 1 . Special Melee Weapon 2 | . . . . . . . . . . 1 . . 1 Unidentified Prototypes 6 | . . 2 . . . 1 . . . 1 1 . 1 Parts Lost 56 | . . 3 . . 3 11 6 5 . 11 10 . 7 Power 7 | . . . . . 1 2 1 1 . . 1 . 1 Propulsion 20 | . . 1 . . 1 3 2 2 . 7 2 . 2 Utility 13 | . . . . . . 3 . 1 . 2 4 . 3 Weapon 16 | . . 2 . . 1 3 3 1 . 2 3 . 1 Highest Loss Streak 10 | . . 3 . . 3 9 4 2 . 3 10 . 7 To Critical Strikes . | . . . . . . . . . . . . . . Average Backups 12 | 4 8 14 15 14 13 12 14 14 15 13 5 4 4 Power . | . 1 1 1 1 1 . . . . . . . . Propulsion 1 | 2 3 1 2 . . . 1 2 2 1 . . . Utility 5 | . 1 6 6 6 6 4 5 6 7 7 4 4 1 Weapon 5 | . 2 5 6 7 6 6 7 5 5 3 . . 1 Tool/Special . | . . . . . . . . . . . . . . Unused Backups 55 | . 4 11 . 2 . 8 9 4 4 5 4 . 4 Power 7 | . . 3 . . . 1 1 . . . . . 2 Propulsion 15 | . 4 1 . 2 . 1 2 . 4 . . . 1 Utility 20 | . . 6 . . . 1 3 1 . 5 4 . . Weapon 13 | . . 1 . . . 5 3 3 . . . . 1 Tool/Special . | . . . . . . . . . . . . . . Average Slot Usage (%) 91 | . 97 99 100 77 90 85 99 99 100 96 35 29 62 Engine 3 | . 5 . . . . 3 9 4 . 4 1 . . Core 5 | . 8 10 11 11 10 3 . 4 9 1 . . 2 Treads 28 | . 26 43 44 44 43 25 35 33 27 2 . . . Leg 4 | . . . . . . . . 2 9 20 6 6 8 Device 7 | . 6 . . . . 10 3 14 18 17 5 . . Storage 9 | . 14 11 11 11 11 8 9 9 9 6 1 . 2 Processor 8 | . 7 11 11 11 11 9 14 6 . 5 3 6 7 Hackware 2 | . . . . . . . 1 . . 9 7 6 19 Protection 3 | . . . . . . 4 7 6 9 4 . . 3 Energy Gun 7 | . 13 11 11 . 7 1 . 11 15 7 . . . Ballistic Gun 7 | . 11 5 3 . 8 15 16 2 . 8 1 . . Launcher 1 | . 2 3 7 . . . . 1 2 . . . . Peak Build Rating 59 | 7 11 26 26 25 25 25 28 29 28 59 43 22 52 Average Rating 25 | 5 9 21 26 21 23 18 24 28 27 50 21 20 41 On Entrance 20 | . 7 11 26 26 21 16 22 25 28 27 41 17 22 Avg Prop Armor Cover (%) 4 | . . . . . . 4 . 3 4 6 . . . Naked Turns . | . . . . . . . . . . . . . . Heaviest Build 56 | 13 30 33 32 25 31 42 40 46 44 56 41 4 36 Greatest Support 82 | 40 40 80 80 80 80 80 82 82 62 70 38 20 35 Greatest Overweight (x) 7 | . 4 . . . . 7 . . . 2 4 . 1 Average Overweight (x) . | . . . . . . . . . . . . . . Largest Inventory Capacity 15 | 8 15 15 15 15 15 15 15 15 15 15 15 5 15 Average Capacity 13 | 7 10 15 15 15 15 14 15 15 15 15 7 5 9 Most Carried 15 | 7 10 15 15 15 15 15 15 15 15 15 13 5 8 Average Carried 12 | 4 8 14 15 14 13 12 14 14 14 13 5 4 4 Final Capacity 15 | 8 15 15 15 15 15 15 15 15 15 15 5 5 15 Final Carried 15 | 7 10 15 15 15 13 15 15 15 15 13 4 5 8 Class Distribution -------------------- 44% | Mutant 40% | Scavenger-Mutant 9% | Scavenger-Gunner 3% | Commander-Mutant Dominant Class ---------------- Mutant | -10/Materials Mutant | -9/Materials Mutant | -9/Mines Mutant | -9/Exiles Mutant | -8/Mines Scavenger-Mutant | -8/Materials Scavenger-Mutant | -8/Storage Scavenger-Mutant | -8/Garrison Scavenger-Mutant | -8/Recycling Scavenger-Gunner | -6/Factory Mutant | -6/Lower Caves Derelict-Mutant | -6/Lower Caves Scavenger-Mutant | -5/Factory Resources | -11 -10 -9 -9 -9 -8 -8 -8 -8 -8 -6 -6 -6 -5 ----------- Run | Yrd Mat Mat Min Exi Min Mat Sto Gar Rec Fac Low Low Fac Matter Collected 4635 | 229 349 650 52 . 65 691 874 470 96 752 144 173 90 Remotely . | . . . . . . . . . . . . . . Salvage Created 6548 | 36 577 1281 105 . 163 1175 1183 615 114 774 345 . 180 Parts 336 | 6 26 80 8 . 11 59 57 28 7 31 13 . 10 Haulers Intercepted 13 | . 2 4 . . . 1 5 . . . . . 1 Recyclers Shooed 3 | . 3 . . . . . . . . . . . . Parts Field Recycled . | . . . . . . . . . . . . . . Retrieved Matter . | . . . . . . . . . . . . . . Parts Self-Destructed 11 | . . . . . . . . . . . 11 . . Prevented . | . . . . . . . . . . . . . . Parts Restored . | . . . . . . . . . . . . . . Kills | -11 -10 -9 -9 -9 -8 -8 -8 -8 -8 -6 -6 -6 -5 ------- Run | Yrd Mat Mat Min Exi Min Mat Sto Gar Rec Fac Low Low Fac Combat Hostiles Destroyed 126 | . 11 28 2 . 3 15 21 20 1 17 7 . 1 Melee 1 | . . . . . . . . . . . . . 1 Guns 72 | . 5 14 2 . . 12 16 9 1 11 2 . . AOE 50 | . 6 14 . . 3 3 5 10 . 4 5 . . Classes Destroyed 18 | 2 6 2 1 . 1 2 3 . . 1 . . . Worker 4 | 1 1 . . . . . 1 . . 1 . . . Builder 7 | . . . . . 1 4 1 . 1 . . . . Tunneler 2 | 1 . . 1 . . . . . . . . . . Hauler 13 | . 2 4 . . . 1 5 . . . . . 1 Recycler 10 | . 3 2 . . . 4 . . 1 . . . . Mechanic 2 | . . 1 . . . . . . . 1 . . . Operator 7 | . 2 1 . . . . 1 . . 1 . . 2 Watcher 6 | . 2 2 . . . . 2 . . . . . . Swarmer 21 | . 6 12 . . . . . 3 . . . . . Grunt 69 | . 5 11 1 . 3 8 10 15 . 10 5 . 1 Brawler 5 | . . . . . . . 3 1 . . 1 . . Duelist 3 | . . . 1 . . . 2 . . . . . . Protector 1 | . . . . . . . 1 . . . . . . Sentry 17 | . . 5 . . . 4 3 1 1 2 1 . . Demolisher 2 | . . . . . . . 2 . . . . . . Specialist 4 | . . . . . . 2 . . . 2 . . . Hunter 1 | . . . . . . 1 . . . . . . . Programmer 3 | . . . . . . . . . . 3 . . . Best Kill Streak 10 | 2 6 6 2 . 3 10 10 3 1 4 7 . 1 Combat Bots Only 8 | . 6 5 2 . 3 4 8 3 1 4 7 . 1 Max Kills in Single Turn 3 | 1 2 3 1 . 2 3 2 3 1 2 2 . 1 Gunslinging . | . . . . . . . . . . . . . . Exploded 3 | . 2 2 . . 2 1 2 3 . 1 2 . . Melee 1 | . . . . . . . . . . . . . 1 Uniques/NPCs Destroyed . | . . . . . . . . . . . . . . Combat | -11 -10 -9 -9 -9 -8 -8 -8 -8 -8 -6 -6 -6 -5 -------- Run | Yrd Mat Mat Min Exi Min Mat Sto Gar Rec Fac Low Low Fac Hostile Shots Fired 696 | . 29 99 8 . 23 156 84 63 4 151 43 . 36 Missed 183 | . 6 37 1 . 5 33 21 17 2 43 12 . 6 Hits 513 | . 23 62 7 . 18 123 63 46 2 108 31 . 30 Melee 19 | . . . 1 . . . 10 3 . . 5 . . Projectile 494 | . 23 62 6 . 18 123 53 43 2 108 26 . 30 AOE 18 | . . . . . 2 . 16 . . . . . . Critical Strikes 23 | . . 2 . . 3 7 3 4 1 2 1 . . Damage Taken 9987 | . 266 1146 134 . 624 1957 1694 844 29 1899 868 . 526 Core 1243 | . 55 120 . . 67 219 170 55 . 173 288 . 96 Absorbed by Shields . | . . . . . . . . . . . . . . Redirected to Shielding 33 | . . . . . . . 33 . . . . . . Regen/Repaired (Parts) 534 | . . 30 . . . 340 131 . . 33 . . . Core Remaining (%) 59 | 100 78 . . . 53 . . . 19 . . 45 . Volleys Fired 421 | 6 51 73 9 . 7 69 70 38 6 69 23 . . Largest 3 | 2 2 2 2 . 2 2 2 2 2 3 1 . . Hottest 195 | 70 70 100 68 . 68 79 50 130 130 195 39 . . Shots Fired 782 | 12 90 130 19 . 14 126 133 69 12 154 23 . . Gun 718 | 12 84 111 19 . 14 122 126 59 12 141 18 . . Cannon . | . . . . . . . . . . . . . . Launcher 54 | . 6 13 . . . 4 7 10 . 10 4 . . Special 10 | . . 6 . . . . . . . 3 1 . . Kinetic 429 | 6 40 50 9 . 7 99 126 18 . 56 18 . . Thermal 240 | 6 44 48 . . . 19 . 41 12 70 . . . Explosive 36 | . 6 2 . . . . 4 10 . 10 4 . . Electromagnetic 73 | . . 30 10 . 7 8 3 . . 15 . . . Robot Hit Streak 20 | 4 20 17 9 . 6 10 13 11 6 17 11 . . Robot Miss Streak 7 | 2 2 3 2 . 1 5 3 4 1 7 1 . . Penetration Max 1 | . . . . . . . . . . 1 1 . . Secondary Targets 9 | . . 1 1 . 1 1 2 2 . 1 . . . Max Gunslinging Chain 1 | . . 1 1 . 1 1 1 1 . 1 . . . Shots Hit Robots 585 | 7 66 95 15 . 12 85 107 45 8 108 22 . 15 Core Hits 342 | 2 35 53 6 . 7 45 59 37 4 72 16 . 6 Critical Kills 2 | . . . . . . 1 1 . . . . . . Critical Parts Destroyed 5 | . . . . . . 2 1 2 . . . . . Critical Strikes 23 | . 3 1 . . . 3 2 10 1 2 . . 1 Burn 15 | . 3 1 . . . . . 8 1 2 . . . Destroy 7 | . . . . . . 3 2 2 . . . . . Impale 1 | . . . . . . . . . . . . . 1 Melee Attacks 73 | . . . . . . 2 4 36 . 9 3 . 19 Impact . | . . . . . . . . . . . . . . Slashing 47 | . . . . . . 2 4 36 . 2 3 . . Piercing 17 | . . . . . . . . . . . . . 17 Sneak Attacks 12 | . . . . . . . 2 . . 7 . . 3 Combat Hostiles . | . . . . . . . . . . . . . . Follow-up Attacks 3 | . . . . . . . . . . . . . 3 Damage Inflicted 14999 | 84 1208 2251 279 . 382 1905 2923 1695 126 2706 956 . 484 Guns 8635 | 84 780 1321 234 . 178 1259 1881 714 126 1713 345 . . Cannons . | . . . . . . . . . . . . . . Explosions 5684 | . 428 930 45 . 204 646 877 981 . 986 587 . . Melee 673 | . . . . . . . 165 . . . 24 . 484 Ramming 7 | . . . . . . . . . . 7 . . . Kinetic 5214 | 22 341 533 87 . 62 1025 1881 259 . 659 345 . . Thermal 3632 | 62 439 762 45 . 204 598 . 455 126 941 . . . Explosive 3937 | . 428 320 . . . . 753 981 . 868 587 . . Electromagnetic 1536 | . . 636 147 . 116 282 124 . . 231 . . . Impact . | . . . . . . . . . . . . . . Slashing 189 | . . . . . . . 165 . . . 24 . . Piercing 484 | . . . . . . . . . . . . . 484 Highest Corruption 13 | . . 1 1 1 1 . 2 4 4 3 13 13 . Average Corruption 2 | . . 1 1 1 1 . 2 3 4 1 10 13 . Corruption Purged . | . . . . . . . . . . . . . . Corruption Blocked . | . . . . . . . . . . . . . . Effects 97 | . . 13 2 4 1 . 5 30 14 11 15 2 . Message Errors 25 | . . 3 . . . . 1 9 4 3 4 1 . Matter Fused 26 | . . 3 . 1 . . 1 9 3 4 5 . . Heat Flow Errors 15 | . . 1 . . . . . 6 3 2 2 1 . Energy Discharges 4 | . . 1 . 1 . . . 2 . . . . . Parts Rejected 1 | . . . . . . . . . . . 1 . . Parts Fused 1 | . . 1 . . . . . . . . . . . Data Loss (minor) 14 | . . 2 . 1 1 . 3 2 2 1 2 . . Data Loss (major) 8 | . . 1 1 1 . . . 2 2 1 . . . Misfires 2 | . . 1 1 . . . . . . . . . . Misdirections 1 | . . . . . . . . . . . 1 . . Overload Shots . | . . . . . . . . . . . . . . Overflow Damage 384 | . 23 139 . . . 58 3 25 . 111 25 . . Projectiles . | . . . . . . . . . . . . . . Explosions 384 | . 23 139 . . . 58 3 25 . 111 25 . . Melee . | . . . . . . . . . . . . . . Knockbacks . | . . . . . . . . . . . . . . Impact . | . . . . . . . . . . . . . . Kinetic . | . . . . . . . . . . . . . . Secondary . | . . . . . . . . . . . . . . Self-Inflicted Damage 1197 | . 12 370 32 . 94 138 73 125 . 195 158 . . Shots 33 | . 1 9 1 . 2 6 2 5 . 3 4 . . Rammed 1 | . 1 . . . . . . . . . . . . Targets Rammed 2 | . 1 . . . . . . . . 1 . . . Kicked 1 | . . . . . . . . . . 1 . . . Crushed . | . . . . . . . . . . . . . . Highest Temperature 501 | 36 126 316 120 . 195 498 26 440 184 501 252 89 . Average Temperature 97 | 16 42 62 46 . 66 215 5 144 47 185 128 52 . Received Heat Transfer 3033 | . 117 354 36 . 240 828 360 387 27 459 180 . 45 Effects 13 | . . 1 . . . 7 . 2 . 3 . . . Shutdowns 2 | . . . . . . 1 . 1 . . . . . Energy Bleed 4 | . . 1 . . . 1 . . . 2 . . . Interference 3 | . . . . . . 3 . . . . . . . Matter Decay 2 | . . . . . . . . 1 . 1 . . . Short Circuit 1 | . . . . . . 1 . . . . . . . Damage (minor) 1 | . . . . . . 1 . . . . . . . Siege Activations . | . . . . . . . . . . . . . . Martial Activations . | . . . . . . . . . . . . . . Shielding Activations . | . . . . . . . . . . . . . . Robots Disrupted . | . . . . . . . . . . . . . . Combat Hostiles . | . . . . . . . . . . . . . . Robots Corrupted . | . . . . . . . . . . . . . . Combat Hostiles . | . . . . . . . . . . . . . . Parts Fried 8 | . . 4 2 . 1 . . . . 1 . . . Impact Corruptions . | . . . . . . . . . . . . . . Robots Melted 3 | . . . . . . . . 1 . 2 . . . Combat Hostiles 3 | . . . . . . . . 1 . 2 . . . Parts Melted 15 | . 3 4 . . . 2 . 2 2 2 . . . Heat Transferred 8452 | 185 1517 1684 50 . 250 781 . 1628 370 1987 . . . Parts Sabotaged . | . . . . . . . . . . . . . . Parts Stolen . | . . . . . . . . . . . . . . Parts Stripped . | . . . . . . . . . . . . . . Power Chain Reactions 14 | . . 8 1 . 2 2 . . . 1 . . . Alert | -11 -10 -9 -9 -9 -8 -8 -8 -8 -8 -6 -6 -6 -5 ------- Run | Yrd Mat Mat Min Exi Min Mat Sto Gar Rec Fac Low Low Fac Maximum Alert Level 3 | . . 1 . . . . 2 3 2 1 . . . Low Security (%) 42 | 100 100 14 100 . 100 100 72 . . . . . 100 Level 1 43 | . . 85 . . . . 23 30 39 100 . . . Level 2 11 | . . . . . . . 4 42 60 . . . . Level 3 3 | . . . . . . . . 27 . . . . . Level 4 . | . . . . . . . . . . . . . . Level 5 . | . . . . . . . . . . . . . . High Security . | . . . . . . . . . . . . . . Max Security . | . . . . . . . . . . . . . . Peak Influence 1052 | 10 140 359 182 . 81 119 437 1052 473 371 . . 20 Initial 473 | . . . 139 . . 13 20 269 473 326 . . . Average 235 | . 50 247 141 . 33 32 130 590 402 285 . . 2 Influence Increases 5245 | 10 354 997 63 . 86 563 1131 833 192 824 155 . 37 Destroy 0b10 Robot/C 2700 | . 220 560 40 . 60 300 600 400 20 340 140 . 20 Destroy 0b10 Robot/NC 275 | 10 50 50 5 . 5 45 70 . 10 15 . . 15 Destroy Leader 538 | . 58 122 10 . 10 82 144 20 . 90 . . 2 Allied During Kill 177 | . . . . . . . 177 . . . . . . Successful Hack 145 | . 4 19 . . . 38 22 . 42 20 . . . Select Force Hacks 120 | . . . . . . . . . 120 . . . . Disable Machine 180 | . . 90 . . . 15 15 . . 60 . . . Anti-Garrison Action 300 | . . . . . . . . 300 . . . . . Destroy Structure 400 | . 22 111 8 . 11 38 13 113 . 84 . . . Advance Influence 200 | . . . . . . . . . . 200 . . . Lose Combat Pursuer 210 | . . 45 . . . 45 90 . . 15 15 . . Influence Decreases 5245 | 10 352 642 308 112 50 549 766 196 941 833 449 . 37 Entered New Map 1397 | . . 2 218 112 . 23 30 146 579 177 110 . . Time Decay 3153 | 10 352 610 90 . 20 431 456 . 362 546 239 . 37 Lost Part 475 | . . 30 . . 30 95 60 50 . 110 100 . . Lost Ally 220 | . . . . . . . 220 . . . . . . Squads Dispatched 23 | . 2 1 . . 1 2 7 . . 7 . . 3 Investigation 2 | . 1 . . . . 1 . . . . . . . Extermination 3 | . . . . . . . . . . 3 . . . Reinforcement 13 | . 1 1 . . 1 1 2 . . 4 . . 3 Assault 2 | . . . . . . . 2 . . . . . . Garrison 3 | . . . . . . . 3 . . . . . . Intercept . | . . . . . . . . . . . . . . Searches Triggered . | . . . . . . . . . . . . . . Construction Impeded 2 | . . . . . 1 . 1 . . . . . . Haulers Reinforced 1 | . . . . . . . . . . . . . 1 Active Scanning Responses . | . . . . . . . . . . . . . . Cargo Convoy Interrupts . | . . . . . . . . . . . . . . Stealth | -11 -10 -9 -9 -9 -8 -8 -8 -8 -8 -6 -6 -6 -5 --------- Run | Yrd Mat Mat Min Exi Min Mat Sto Gar Rec Fac Low Low Fac Distress Signals 7 | . 1 4 . . . . 1 . . 1 . . . Communications Jammed . | . . . . . . . . . . . . . . Distress Signals . | . . . . . . . . . . . . . . Times Spotted 190 | . 19 42 2 . 6 24 37 20 1 24 10 . 5 Peak Tracking Total 8 | . 5 5 2 . 3 4 8 4 1 4 5 . 2 Tactical Retreats 12 | . . 3 . . . 3 4 . . 1 1 . . Traps | -11 -10 -9 -9 -9 -8 -8 -8 -8 -8 -6 -6 -6 -5 ------- Run | Yrd Mat Mat Min Exi Min Mat Sto Gar Rec Fac Low Low Fac Traps Triggered 10 | . 4 . . . . 1 2 . . 3 . . . Indirectly . | . . . . . . . . . . . . . . Trap Hack Attempts . | . . . . . . . . . . . . . . Triggered . | . . . . . . . . . . . . . . Disarmed . | . . . . . . . . . . . . . . Reprogrammed . | . . . . . . . . . . . . . . Reused . | . . . . . . . . . . . . . . Traps Extracted . | . . . . . . . . . . . . . . Installed . | . . . . . . . . . . . . . . Triggered . | . . . . . . . . . . . . . . Machines | -11 -10 -9 -9 -9 -8 -8 -8 -8 -8 -6 -6 -6 -5 ---------- Run | Yrd Mat Mat Min Exi Min Mat Sto Gar Rec Fac Low Low Fac Machines Disabled 18 | . . 6 . . . 1 1 5 . 4 1 . . Max in Single Turn 2 | . . 2 . . . 1 1 2 . 2 1 . . Garrison Relay 3 | . . . . . . . . 3 . . . . . Phase Generator 1 | . . . . . . . . 1 . . . . . Machines Repaired . | . . . . . . . . . . . . . . Machines Dismantled . | . . . . . . . . . . . . . . Machines Sabotaged . | . . . . . . . . . . . . . . Overloaded Fab Kills . | . . . . . . . . . . . . . . Hacking | -11 -10 -9 -9 -9 -8 -8 -8 -8 -8 -6 -6 -6 -5 --------- Run | Yrd Mat Mat Min Exi Min Mat Sto Gar Rec Fac Low Low Fac Machines Accessed 44 | . 5 11 . . . 6 10 . 9 3 . . . Terminals 32 | . 5 9 . . . 4 8 . 5 1 . . . Fabricators . | . . . . . . . . . . . . . . Repair Stations 4 | . . 1 . . . 1 1 . . 1 . . . Recycling Units 4 | . . . . . . . . . 4 . . . . Scanalyzers 3 | . . 1 . . . 1 . . . 1 . . . Garrison Access 1 | . . . . . . . 1 . . . . . . Total Hacks 131 | . 13 38 . . . 23 26 . 21 10 . . . Successful 76 | . 7 18 . . . 17 15 . 13 6 . . . Failed 54 | . 6 19 . . . 6 11 . 8 4 . . . Catastrophic 9 | . . 3 . . . 1 2 . 1 2 . . . Database Lockouts 1 | . . 1 . . . . . . . . . . . Manual 67 | . 13 18 . . . 11 8 . 16 1 . . . Terminals 99 | . 13 32 . . . 13 23 . 17 1 . . . Fabricators . | . . . . . . . . . . . . . . Repair Stations 17 | . . 2 . . . 8 2 . . 5 . . . Recycling Units 4 | . . . . . . . . . 4 . . . . Scanalyzers 10 | . . 4 . . . 2 . . . 4 . . . Garrison Access 1 | . . . . . . . 1 . . . . . . Terminal Hacks 22 | . . 6 . . . 5 7 . 4 . . . . Prototype ID Bank 5 | . . 1 . . . 1 2 . 1 . . . . Open Door 2 | . . . . . . . 2 . . . . . . Branch Access Points 1 | . . . . . . 1 . . . . . . . Terminal Index 3 | . . 1 . . . 1 1 . . . . . . Locate Traps 5 | . . 1 . . . 1 2 . 1 . . . . Hauler Manifests 1 | . . 1 . . . . . . . . . . . Registered Prototypes 1 | . . . . . . . . . 1 . . . . Zone Layout 4 | . . 2 . . . 1 . . 1 . . . . Fabricator Hacks . | . . . . . . . . . . . . . . Repair Station Hacks 13 | . . 2 . . . 6 2 . . 3 . . . Scan Component 7 | . . 1 . . . 3 1 . . 2 . . . Repair 6 | . . 1 . . . 3 1 . . 1 . . . Recycling Unit Hacks . | . . . . . . . . . . . . . . Scanalyzer 6 | . . 2 . . . 1 . . . 3 . . . Insert Component 2 | . . . . . . . . . . 2 . . . Analyze 1 | . . . . . . . . . . 1 . . . Retrieve Study 3 | . . 2 . . . 1 . . . . . . . Garrison Access Hacks 1 | . . . . . . . 1 . . . . . . Unlock Access 1 | . . . . . . . 1 . . . . . . Unauthorized Hacks 34 | . 7 8 . . . 5 5 . 9 . . . . Terminals 30 | . 7 8 . . . 5 5 . 5 . . . . Botnet 12 | . 2 3 . . . 2 3 . 2 . . . . Operators 1 | . . . . . . 1 . . . . . . . Skim 17 | . 5 5 . . . 2 2 . 3 . . . . Fabricators . | . . . . . . . . . . . . . . Repair Stations . | . . . . . . . . . . . . . . Recycling Units 4 | . . . . . . . . . 4 . . . . Tunnel 4 | . . . . . . . . . 4 . . . . Scanalyzers . | . . . . . . . . . . . . . . Garrison Access . | . . . . . . . . . . . . . . Data Cores Recovered . | . . . . . . . . . . . . . . Used . | . . . . . . . . . . . . . . Hacking Detections 33 | . 5 9 . . . 5 6 . 5 3 . . . Full Trace Events . | . . . . . . . . . . . . . . Feedback Events . | . . . . . . . . . . . . . . Feedback Blocked . | . . . . . . . . . . . . . . Robot Schematics Acquired . | . . . . . . . . . . . . . . Robots Built . | . . . . . . . . . . . . . . Authchips . | . . . . . . . . . . . . . . Time . | . . . . . . . . . . . . . . Total Robot Build Rating . | . . . . . . . . . . . . . . Part Schematics Acquired 1 | . . . . . . . . . . 1 . . . Parts Built . | . . . . . . . . . . . . . . Authchips . | . . . . . . . . . . . . . . Time . | . . . . . . . . . . . . . . Total Part Build Rating . | . . . . . . . . . . . . . . Part Studies Acquired 2 | . . 1 . . . 1 . . . . . . . Parts Repaired 6 | . . 1 . . . 3 1 . . 1 . . . Time 179 | . . 38 . . . 84 38 . . 19 . . . Parts Recycled . | . . . . . . . . . . . . . . Recycled Matter . | . . . . . . . . . . . . . . Retrieved Matter . | . . . . . . . . . . . . . . Retrieved Components . | . . . . . . . . . . . . . . Parts Scanalyzed 1 | . . . . . . . . . . 1 . . . Part Schematics Acquired 1 | . . . . . . . . . . 1 . . . Parts Damaged . | . . . . . . . . . . . . . . Bothacking | -11 -10 -9 -9 -9 -8 -8 -8 -8 -8 -6 -6 -6 -5 ------------ Run | Yrd Mat Mat Min Exi Min Mat Sto Gar Rec Fac Low Low Fac Used RIF Installer 1 | . . . . . . . . 1 . . . . . Robots Hacked 4 | . . . . . . . . . . 4 . . . Non-combat 4 | . . . . . . . . . . 4 . . . Combat . | . . . . . . . . . . . . . . Robot Hacks Applied 6 | . . . . . . . . . . 6 . . . generate_anomaly 1 | . . . . . . . . . . 1 . . . generate_echo 1 | . . . . . . . . . . 1 . . . find_chute 1 | . . . . . . . . . . 1 . . . drop_inventory 1 | . . . . . . . . . . 1 . . . link_fov 2 | . . . . . . . . . . 2 . . . Relay Couplers Released 11 | . . . . . . . . 11 . . . . . Machine Destruction 11 | . . . . . . . . 11 . . . . . Attached 2 | . . . . . . . . . . 1 . . 1 Fabnet Peak Effective % . | . . . . . . . . . . . . . . Robots Rewired . | . . . . . . . . . . . . . . Allies Hacked . | . . . . . . . . . . . . . . Hacks Repelled . | . . . . . . . . . . . . . . Allies | -11 -10 -9 -9 -9 -8 -8 -8 -8 -8 -6 -6 -6 -5 -------- Run | Yrd Mat Mat Min Exi Min Mat Sto Gar Rec Fac Low Low Fac Total Allies 12 | . . . . . . . 12 . . . . . . Largest Group 11 | . . . . . . . 11 . . . . . . Highest-Rated Group 213 | . . . . . . . 213 . . . . . . Highest-Rated Ally 31 | . . . . . . . 31 . . . . . . Total Orders . | . . . . . . . . . . . . . . Ally Attacks 88 | . . . . . . . 88 . . . . . . Total Damage 1048 | . . . . . . . 1048 . . . . . . Kills 13 | . . . . . . . 13 . . . . . . Allies Corrupted . | . . . . . . . . . . . . . . Allies Melted . | . . . . . . . . . . . . . . Intel | -11 -10 -9 -9 -9 -8 -8 -8 -8 -8 -6 -6 -6 -5 ------- Run | Yrd Mat Mat Min Exi Min Mat Sto Gar Rec Fac Low Low Fac Active Infowar (turns) 8047 | 19 1150 2196 199 840 99 592 . 290 839 1578 150 . 95 Optics 4468 | . 605 2196 199 840 99 529 . . . . . . . Sensors 183 | . . . . . . 183 . . . . . . . Structural 3107 | . . . . . . 250 . 290 839 1578 150 . . Seismic 564 | 19 545 . . . . . . . . . . . . T.N.C. 95 | . . . . . . . . . . . . . 95 Robot Analysis Total . | . . . . . . . . . . . . . . Derelict Logs Recovered 3 | . . . 1 . . . . . . . 1 1 . Drone Launches . | . . . . . . . . . . . . . . Drone Recoveries . | . . . . . . . . . . . . . . Exploration | -11 -10 -9 -9 -9 -8 -8 -8 -8 -8 -6 -6 -6 -5 ------------- Run | Yrd Mat Mat Min Exi Min Mat Sto Gar Rec Fac Low Low Fac Turns Passed 12046 | 176 1150 2196 199 840 99 1358 1324 1441 839 1578 556 80 210 Spaces Moved 5737 | 85 404 842 97 491 37 551 575 701 524 875 392 60 103 Core 79 | 2 2 . . . . 14 . . . . 61 . . Treads 4286 | 83 402 842 97 491 37 490 575 701 524 44 . . . Legs 1325 | . . . . . . . . . . 831 331 60 103 Wheels 47 | . . . . . . 47 . . . . . . . Hover . | . . . . . . . . . . . . . . Flight . | . . . . . . . . . . . . . . Fastest Speed 50 | 50 160 160 170 170 170 70 155 155 155 120 50 130 125 Average Speed 154 | 157 166 165 170 170 170 170 157 155 155 132 123 130 154 Slowest Speed 400 | 160 250 170 170 170 170 400 160 156 155 260 250 130 200 Overloaded Moves . | . . . . . . . . . . . . . . Propulsion Burnouts . | . . . . . . . . . . . . . . Robots Hopped . | . . . . . . . . . . . . . . Potential Cave-ins . | . . . . . . . . . . . . . . Cave-ins Triggered . | . . . . . . . . . . . . . . Exploration Rate (%) 45 | 4 67 64 45 91 16 34 82 74 82 17 52 11 3 Regions Visited 13 Branch Regions 7 Pre-discovered Areas 6 | . . 1 1 . . . . . 4 . . . . Known Exits Taken 8 | . 1 1 1 . 1 1 1 . . . 1 1 . Unknown Exits Taken 4 | 1 . . . 1 . . . . 1 1 . . . Scrap Searched 2 | . . . . . . . . . . . 1 1 . Spaces Dug 19 | . . 6 . . . 2 . 9 . 2 . . . Terrain Destroyed 465 | . 20 117 9 . 16 35 8 128 . 94 38 . . Melee 13 | . . . . . . 2 . 9 . 2 . . . Projectile 6 | . . 6 . . . . . . . . . . . AOE 446 | . 20 111 9 . 16 33 8 119 . 92 38 . . Terrain Rammed . | . . . . . . . . . . . . . . Walls Destroyed . | . . . . . . . . . . . . . . Machines Disabled . | . . . . . . . . . . . . . . Actions | -11 -10 -9 -9 -9 -8 -8 -8 -8 -8 -6 -6 -6 -5 --------- Run | Yrd Mat Mat Min Exi Min Mat Sto Gar Rec Fac Low Low Fac Total 8114 | 112 791 1517 115 499 61 853 874 927 541 1182 444 61 137 Wait 1423 | 8 305 528 9 . 16 146 138 104 3 152 9 . 5 Move 5725 | 84 403 841 96 490 36 550 575 700 523 874 391 59 103 Hop . | . . . . . . . . . . . . . . Pick Up 134 | 7 8 23 . . . 32 19 14 4 20 1 1 5 Fast Attach 58 | 7 6 2 . . . 13 8 1 . 9 5 1 6 Attach 45 | . . 5 . . 2 7 4 6 . 14 4 . 3 Detach 5 | . . . . 2 . 1 . . . . 2 . . Swap 107 | . 8 21 1 . . 16 23 17 1 18 2 . . Drop 118 | . 9 24 . 2 . 17 31 11 4 16 4 . . Fire 421 | 6 51 73 9 . 7 69 70 38 6 69 23 . . Melee 69 | . . . . . . 2 4 36 . 9 3 . 15 Ram . | . . . . . . . . . . . . . . Kick 1 | . . . . . . . . . . 1 . . . Crush 1 | . 1 . . . . . . . . . . . . Escape Stasis . | . . . . . . . . . . . . . . Rewire 7 | . . . . 5 . . 2 . . . . . . Trap . | . . . . . . . . . . . . . . Miscellaneous . | . . . . . . . . . . . . . . Route ------- -11/Scrapyard -10/Materials (discovered 5 exits: *Mat x3 / [*Min x2]) -9/Materials (discovered 5 exits: Mat x3 / *Min x2) -9/Mines (discovered 3 exits: *Mat x2 / *Exi) -9/Exiles (discovered 2 exits: [*Min x2]) -8/Mines (discovered 2 exits: *Mat x2) -8/Materials (discovered 3 exits: *Fac / *Sto x2) -8/Storage (discovered 2 exits: *Fac / Gar) -8/Garrison (discovered 2 exits: *Rec x2) -8/Recycling -6/Factory (discovered 2 exits: *Fac / [*Low]) -6/Lower Caves -6/Lower Caves -5/Factory (discovered 2 exits: Fac / Ext) History --------- Turn | Location | Event 9 | -11/Scrapyard | Discovered new exit (range 16) 177 | -11/Scrapyard | Entered Materials 223 | -10/Materials | Discovered new exit (range 12) 305 | -10/Materials | Build established: Mutant 423 | -10/Materials | Discovered new exit (range 12) 681 | -10/Materials | Discovered new exit (range 15) 1065 | -10/Materials | Discovered new exit (range 4) 1066 | -10/Materials | Learned location of 2 exits from Subcaves 1117 | -10/Materials | Identified exit to Materials 1158 | -10/Materials | Learned location of 2 exits from Mines 1189 | -10/Materials | Learned 4 Subcaves zone layouts 1212 | -10/Materials | Learned Storage stockpile data 1223 | -10/Materials | Learned Storage security intel 1327 | -10/Materials | Entered another Materials area 1327 | -9/Materials | Evolved 2 slots: Propulsion x2 1328 | -9/Materials | Identified exit to Mines 1910 | -9/Materials | Lost 3 parts (1n2w) 2851 | -9/Materials | Discovered new exit (range 8) 2916 | -9/Materials | Repaired Lgt. Nuclear Core 3195 | -9/Materials | Learned Storage emergency access door positions 3275 | -9/Materials | Identified exit to Materials 3302 | -9/Materials | Learned 2 Storage zone layouts 3341 | -9/Materials | Learned Storage stockpile data 3391 | -9/Materials | Learned Recycling recycling unit intel 3503 | -9/Materials | Central database locked down 3523 | -9/Materials | Entered Mines 3525 | -9/Mines | Identified exit to Exiles 3561 | -9/Mines | Learned location of Storage (-8) 3582 | -9/Mines | Assembled infested the area 3716 | -9/Mines | Deemed a non-threat by the Exiles lab entrance 3722 | -9/Mines | Entered Exiles 3750 | -9/Exiles | Discovered new exit (range 17) 3765 | -9/Exiles | Met 8R-AWN 3794 | -9/Exiles | Met EX-HEX 3872 | -9/Exiles | Met EX-DEC 3963 | -9/Exiles | Visited The Gauntlet 4231 | -9/Exiles | Discovered new exit (range 15) 4352 | -9/Exiles | Met EX-BIN 4562 | -9/Exiles | Entered Mines 4661 | -8/Mines | Entered Materials 4661 | -8/Materials | Evolved 2 slots: Utility x2 4688 | -8/Materials | Lost 3 parts (1p1n1w) 4895 | -8/Materials | Lost 9 parts (1p3n2u3w) 5239 | -8/Materials | Build established: Scavenger-Mutant 5370 | -8/Materials | Discovered new exit (range 6) 5380 | -8/Materials | Identified exit to Storage 5486 | -8/Materials | Discovered new exit (range 8) 5498 | -8/Materials | Identified exit to Factory 5628 | -8/Materials | Repaired Lgt. Treads 5662 | -8/Materials | Repaired EMP Blaster 5689 | -8/Materials | Repaired Lrg. Storage Unit 6019 | -8/Materials | Entered Storage 6417 | -8/Storage | Assisted by bots powering up and referring to "LRC-V3" 6569 | -8/Storage | Repaired Adv. Treads 6712 | -8/Storage | Build established: Commander-Mutant 6886 | -8/Storage | Met a pair of Derelict thieves 6954 | -8/Storage | Lost 11 allies 6998 | -8/Storage | Core integrity fell below 50% 7047 | -8/Storage | Garrison activated, responded to threat 7118 | -8/Storage | Lost 4 parts (1p2n1w) 7126 | -8/Storage | Destroyed 8 combat bots 7228 | -8/Storage | Discovered exit to Factory (range 6) 7343 | -8/Storage | Identified exit to Garrison 7343 | -8/Storage | Entered Garrison 7403 | -8/Garrison | Build established: Scavenger-Mutant 7457 | -8/Garrison | Triggered checkpoint 7510 | -8/Garrison | Garrison Relay disabled 7871 | -8/Garrison | Triggered checkpoint 7943 | -8/Garrison | Triggered checkpoint 8055 | -8/Garrison | Garrison Relay disabled 8116 | -8/Garrison | Discovered new exit (range 10) 8351 | -8/Garrison | Triggered checkpoint 8417 | -8/Garrison | Core integrity fell below 20% 8473 | -8/Garrison | Phase Generator disabled 8522 | -8/Garrison | Spotted B-75 Beast 8561 | -8/Garrison | Discovered new exit (range 10) 8639 | -8/Garrison | Triggered checkpoint 8697 | -8/Garrison | Triggered checkpoint 8712 | -8/Garrison | Installed Relay Interface Framework 8784 | -8/Garrison | Entered Recycling 8785 | -8/Recycling | Loaded intel: 4 recycling unit locations 9558 | -8/Recycling | Scanned before Scraplab entrance 9590 | -8/Recycling | Discovered new exit (range 15) 9623 | -8/Recycling | Entered Factory 9623 | -6/Factory | Evolved 4 slots: Utility x3, Weapon x1 9834 | -6/Factory | Lost 3 parts (1n2u) 9846 | -6/Factory | Repaired Lgt. Nuclear Core 9931 | -6/Factory | Build established: Scavenger-Gunner 10491 | -6/Factory | Discovered new exit (range 7) 10779 | -6/Factory | Build established: Scavenger-Mutant 11096 | -6/Factory | Build established: Scavenger-Gunner 11099 | -6/Factory | Discovered new exit (range 16) 11201 | -6/Factory | Entered Lower Caves 11275 | -6/Lower Caves | Attracted the attention of an 0b10 outpost 11344 | -6/Lower Caves | Core integrity fell below 50% 11348 | -6/Lower Caves | System corruption reached 10% 11349 | -6/Lower Caves | Destroyed 7 combat bots 11382 | -6/Lower Caves | Lost 10 parts (1p2n4u3w) 11625 | -6/Lower Caves | Build established: Mutant 11748 | -6/Lower Caves | Discovered new exit (range 8) 11756 | -6/Lower Caves | Identified exit to Lower Caves 11757 | -6/Lower Caves | Entered another Lower Caves area 11791 | -6/Lower Caves | Learned location of 1 exit from Factory 11817 | -6/Lower Caves | Discovered new exit (range 16) 11835 | -6/Lower Caves | Identified exit to Factory 11837 | -6/Lower Caves | Entered Factory 11837 | -5/Factory | Evolved 2 slots: Power x1, Utility x1 11838 | -5/Factory | Identified exit to Extension 11839 | -5/Factory | Identified exit to Factory 12047 | -5/Factory | Self-destructed Last Messages --------------- 12026_ Acquired Nuclear Pulse Array. 12030_ Penetrated by Slug. 12030_ Slug penetrates Wall. 12034_ Penetrated by Slug. 12034_ Insulated Plating destroyed. 12034_ Penetrated by Slug. 12034_ Slug penetrates Wall. 12039_ Penetrated by Slug. 12039_ Carbon-fiber Leg destroyed. 12039_ Slug penetrates Wall. 12041_ Penetrated by Slug. 12041_ Relay Coupler [Hunter] destroyed. 12041_ Penetrated by Slug. 12042_ Hacking Suite destroyed. 12044_ Penetrated by Slug. 12045_ Imp. Titanium Leg destroyed. 12046_ Jacked H-66 Slayer... 12047_ Mak. Spear destroyed. 12047_ Penetrated by Slug. 12047_ Lgt. Neutrino Core destroyed. Map ----- +----------------------------------------------------+ | ????????????????????????????????? | | ????????????????????????????????? | | ????????????????????????????????? | | ????????????????????????????????? | | ????????????????????????????????? | | ????????????????????????????????? | | ????????????????????????????????? | | ????????????????????????????????? | | ????????????????????????????????? | | ????????????????????????????????? | | ??????????????? ??????????????? | | ??????????????? ????????????? | | ??????????????? #???????????? | | ??????????????? #???????????? | | ?############## #???????????? | | ?# # ######??????? | | ?# # ???????? | | ?# # #????????? | | ?# # #????????? | | ?# # #????????? | | ?# # #????????? | | ?# # ####?????? | | ?# ] # +?????? | | ?# # #????????? | | ?# + #????????? | | ?# @%"T" # #????????? | | ?# hh= # #????????? | | ?###+##/####### #########? | | ?????? ????# ? | | ????? ????# | | ???? ????# | | ???# ????# | | ???# ?????# == | | ???# ????######+#############?? | | ???# ????# % ] #???????? | | ???# #?????# #???????? | | ???# ??????# #???????? | | ???# ??????# """"" #???????? | | ???# ??????# """"" #???????? | | ???# ####### """ #???????? | | ???# + #???????? | | ???# # """"" #???????? | | ???# # """"" #???????? | | ??# +% """ #???????? | | ??#T #### #???????? | | ??## ???# """T""" #???????? | | ???# ???##############???????? | | ???# ????????????????????????? | | ???# ????????????????????????? | | ???# ????????????????????????? | +----------------------------------------------------+ Best States ------------- Heat Dissipation 75 Energy Generation 19 Energy Capacity 310 Matter Stores 300 Matter Capacity 300 Sight Range 20 Robot Scan Range 15 Terrain Scan Density 10 Base Temperature (-) 150 Armor Coverage 225 Resistance: KI 30 Resistance: EM 15 Core Shielding 20 Weapon Cycling 15 Evasion (%) 55 Targeting Accuracy 8 Target Analysis 5 Core Analysis 6 Recoil Reduction 8 Particle Charging 15 Kinecelleration 30 Offensive Hacking 20 Defensive Hacking 10 Relay Coupler Types 1 Relay Coupler Value 25 Authchip Count 1 Item Schematics ----------------- Scythe | -6/Factory | Scanalyzed Robot Schematics ------------------ None Fabricated ------------ Nothing Repaired ---------- Lgt. Nuclear Core | 40% | -9/Materials Lgt. Treads | 11% | -8/Materials EMP Blaster | 14% | -8/Materials Lrg. Storage Unit | 55% | -8/Materials Adv. Treads | 22% | -8/Storage Lgt. Nuclear Core | 34% | -6/Factory Studied --------- Autogun | -9/Materials | Hacked Wheel | -8/Materials | Hacked Alien Tech Used ----------------- None Achievements -------------- DIY Cooler Plot Armor Challenges ------------ None Game ------ Seed WeaponLinearJetlance Manual? 0 Play Time 01:53:07 Cumulative 76.5 hours Start 2026.06.26 @ 07:49:29 End 2026.06.27 @ 11:10:32 Sessions 12 Manual Loads 0 Difficulty Rogue Special Mode None Game No. 91 Rogue 84 Adventurer 0 Explorer 7 Win Type - Total 1 Types 1/0/0/0/0/0/0/0/0/0 Lore% 20 Gallery% 31 Achievement% 27 Wizard Run 0 Options --------- Layout 1 ASCII 0 Keyboard 0 Movement Numpad Keybinds 0 Fullscreen 2 Font 32/SmallcapsGlow Map View 50x35 Zoom Use 0% Tactical HUD 1 Map Filters NONE Filters NONE Steam 1 RUN: 56e9a919-cfc3-4aa1-a24b-af36e6a13397